fUST/lending_fUST_20241225
["ID","MTS","AMOUNT","RATE_DAILY","PERIOD"]
[346566215,1735097444084,-1361.85,0.00013273,2]
[346566216,1735097444094,-25879.63,0.00013273,2]
[346566217,1735097444103,-960.08,0.00013273,2]
[346566218,1735097444112,-500.0,0.00013273,2]
[346566219,1735097444121,-500.0,0.00013273,2]
[346566220,1735097444131,-9761.26,0.00013273,2]
[346566221,1735097444140,-500.0,0.00013273,2]
[346566222,1735097444149,-637.94,0.00013273,2]
[346566223,1735097444159,-233.775016,0.00013273,2]
[346566224,1735097444168,-233.775016,0.00013273,2]
[346566225,1735097444177,-3670.56,0.00013273,2]
[346566226,1735097444186,-151.0,0.00013273,2]
[346566227,1735097444195,-780.49,0.00013273,2]
[346566228,1735097444205,-1663.57,0.00013273,2]
[346566229,1735097444214,-500.0,0.00013273,2]
[346566230,1735097444223,-255.372776,0.00013273,2]
[346566231,1735097444232,-1439.08,0.00013273,2]
[346566232,1735097444242,-151.0,0.00013273,2]
[346566233,1735097444251,-532.58,0.00013273,2]
[346566234,1735097444261,-3094.29,0.00013273,2]
[346566235,1735097444271,-324.01498559,0.00013273,2]
[346566236,1735097444280,-6061.48,0.00013273,2]
[346566237,1735097444290,-905.51,0.00013273,2]
[346566238,1735097444299,-1289.263323,0.00013273,2]
[346566239,1735097444308,-708.57,0.00013273,2]
[346566240,1735097444317,-1289.263323,0.00013273,2]
[346566241,1735097444327,-12436.27,0.00013273,2]
[346566242,1735097444336,-500.0,0.00013273,2]
[346566243,1735097444345,-500.0,0.00013273,2]
[346566244,1735097444354,-3842.66,0.00013273,2]
[346566245,1735097444364,-666.0,0.00013282,2]
[346566246,1735097444374,-500.0,0.00013288,2]
[346566247,1735097444383,-399.41832952,0.00013288,2]
[346566248,1735097444393,-165.28165373,0.00013288,2]
[346566249,1735097444402,-501.04497922,0.00013289,2]
[346566250,1735097444411,-1398.99,0.00013289,2]
[346566251,1735097444420,-661.87,0.00013289,2]
[346566252,1735097444430,-511.29685854,0.00013289,2]
[346566253,1735097444439,-524.04,0.00013289,2]
[346566254,1735097444449,-627.18290576,0.00013289,2]
[346566255,1735097444458,-849.56,0.00013289,2]
[346566256,1735097444468,-501.25237563,0.00013289,2]
[346566257,1735097444477,-501.33457029,0.00013289,2]
[346566258,1735097444486,-502.04033851,0.00013289,2]
[346566259,1735097444495,-500.0,0.00013289,2]
[346566260,1735097444505,-501.01436124,0.00013289,2]
[346566261,1735097444514,-503.24476705,0.00013289,2]
[346566262,1735097444524,-500.0,0.00013289,2]
[346566263,1735097444535,-500.0,0.00013289,2]
[346566264,1735097444544,-1455.44,0.00013289,2]
[346566265,1735097444554,-500.0,0.00013289,2]
[346566266,1735097444564,-2952.5,0.00013289,2]
[346566267,1735097444574,-500.0,0.00013289,2]
[346566268,1735097444584,-914.53,0.00013289,2]
[346566269,1735097444595,-282.82,0.00013289,2]
[346566270,1735097444605,-2063.14,0.00013289,2]
[346566271,1735097444616,-1291.11,0.00013289,2]
[346566272,1735097444626,-267.589683,0.00013289,2]
[346566273,1735097444635,-159.656492,0.00013289,2]
[346566274,1735097444645,-267.589683,0.00013289,2]
[346566275,1735097444654,-239.346566,0.00013289,2]
[346566276,1735097444664,-239.346566,0.00013289,2]
[346566277,1735097444673,-501.52303775,0.00013289,2]
[346566278,1735097444683,-500.0,0.00013289,2]
[346566279,1735097444692,-500.0,0.00013289,2]
[346566280,1735097444701,-1144.61,0.00013289,2]
[346566281,1735097444711,-200.030491,0.00013289,2]
[346566282,1735097444720,-500.0,0.00013289,2]
[346566283,1735097444730,-4650.47,0.00013289,2]
[346566284,1735097444739,-501.49418265,0.00013289,2]
[346566285,1735097444749,-200.030491,0.00013289,2]
[346566286,1735097444759,-500.0,0.00013289,2]
[346566287,1735097444769,-500.0,0.00013289,2]
[346566288,1735097444783,-2597.03,0.00013289,2]
[346566289,1735097444793,-1391.87,0.00013289,2]
[346566290,1735097444802,-501.69171274,0.00013289,2]
[346566291,1735097444824,-502.39980787,0.00013289,2]
[346566292,1735097444834,-598.73,0.00013289,2]
[346566293,1735097444844,-747.110919,0.00013289,2]
[346566294,1735097444857,-225.848251,0.00013289,2]
[346566295,1735097444867,-1710.85,0.00013289,2]
[346566296,1735097444877,-151.0,0.00013289,2]
[346566297,1735097444887,-151.0,0.00013289,2]
[346566298,1735097444897,-747.110919,0.00013289,2]
[346566299,1735097444908,-151.0,0.00013289,2]
[346566300,1735097444919,-225.848251,0.00013289,2]
[346566301,1735097444930,-151.0,0.00013289,2]
[346566302,1735097444940,-644.74,0.00013289,2]
[346566303,1735097444950,-1098.11,0.00013289,2]
[346566304,1735097444959,-500.0,0.00013289,2]
[346566305,1735097444969,-501.62090142,0.00013289,2]
[346566306,1735097444979,-500.0,0.00013289,2]
[346566307,1735097444989,-153.07221,0.00013289,2]
[346566308,1735097444999,-500.0,0.00013289,2]
[346566309,1735097445010,-500.0,0.00013289,2]
[346566310,1735097445021,-500.0,0.00013289,2]
[346566311,1735097445031,-500.0,0.00013289,2]
[346566312,1735097445040,-500.0,0.00013289,2]
[346566313,1735097445050,-1528.55,0.00013289,2]
[346566314,1735097445060,-151.0,0.00013289,2]
[346566315,1735097445070,-151.0,0.00013289,2]
[346566316,1735097445080,-151.0,0.00013289,2]
[346566317,1735097445090,-151.0,0.00013289,2]
[346566318,1735097445100,-151.0,0.00013289,2]
[346566319,1735097445110,-151.0,0.00013289,2]
[346566320,1735097445120,-500.0,0.00013289,2]
[346566321,1735097445129,-501.00680412,0.00013289,2]
[346566322,1735097445139,-1469.68,0.00013289,2]
[346566323,1735097445150,-692.07,0.00013289,2]
[346566324,1735097445160,-3146.89,0.00013289,2]
[346566325,1735097445170,-624.44,0.00013289,2]
[346566326,1735097445179,-5934.39,0.00013289,2]
[346566327,1735097445189,-500.0,0.00013289,2]
[346566328,1735097445198,-2352.17,0.00013289,2]
[346566329,1735097445207,-151.0,0.00013289,2]
[346566330,1735097445217,-151.0,0.00013289,2]
[346566331,1735097445226,-151.0,0.00013289,2]
[346566332,1735097445236,-758.297212,0.00013289,2]
[346566333,1735097445245,-758.297212,0.00013289,2]
[346566334,1735097445254,-758.297212,0.00013289,2]
[346566335,1735097445264,-758.297212,0.00013289,2]
[346566336,1735097445274,-151.0,0.00013289,2]
[346566337,1735097445283,-151.0,0.00013289,2]
[346566338,1735097445293,-151.0,0.00013289,2]
[346566339,1735097445303,-294.68623,0.00013289,2]
[346566340,1735097445312,-151.0,0.00013289,2]
[346566341,1735097445324,-151.0,0.00013289,2]
[346566342,1735097445340,-151.0,0.00013289,2]
[346566343,1735097445352,-660.89,0.00013289,2]
[346566344,1735097445362,-151.0,0.00013289,2]
[346566345,1735097445372,-151.0,0.00013289,2]
[346566346,1735097445381,-151.0,0.00013289,2]
[346566347,1735097445391,-772.82,0.00013289,2]
[346566348,1735097445401,-500.0,0.00013289,2]
[346566349,1735097445411,-151.0,0.00013289,2]
[346566350,1735097445420,-151.0,0.00013289,2]
[346566351,1735097445429,-151.0,0.00013289,2]
[346566352,1735097445439,-500.58620449,0.00013289,2]
[346566353,1735097445449,-500.0,0.00013289,2]
[346566354,1735097445458,-273.251143,0.00013289,2]
[346566355,1735097445468,-501.76117965,0.00013289,2]
[346566356,1735097445478,-502.77794003,0.00013289,2]
[346566357,1735097445487,-594.7,0.00013289,2]
[346566358,1735097445497,-1619.64,0.00013289,2]
[346566359,1735097445507,-1503.87,0.00013289,2]
[346566360,1735097445517,-233.775016,0.00013289,2]
[346566361,1735097445527,-233.775016,0.00013289,2]
[346566362,1735097445709,-613.96,0.00013289,2]
[346566363,1735097445719,-233.775016,0.00013289,2]
[346566364,1735097445729,-233.775016,0.00013289,2]
[346566365,1735097445739,-502.23258328,0.00013289,2]
[346566366,1735097445749,-500.0,0.00013289,2]
[346566367,1735097445759,-506.06218265,0.00013289,2]
[346566368,1735097445769,-233.775016,0.00013289,2]
[346566369,1735097445782,-233.775016,0.00013289,2]
[346566370,1735097445792,-233.775016,0.00013289,2]
[346566371,1735097445801,-233.775016,0.00013289,2]
[346566372,1735097445811,-3309.95,0.00013289,2]
[346566373,1735097445822,-2262.57,0.00013289,2]
[346566374,1735097445832,-151.0,0.00013289,2]
[346566375,1735097445841,-151.0,0.00013289,2]
[346566376,1735097445851,-151.0,0.00013289,2]
[346566377,1735097445861,-151.0,0.00013289,2]
[346566378,1735097445871,-504.91280932,0.00013289,2]
[346566379,1735097445880,-501.23495038,0.00013289,2]
[346566380,1735097445890,-338.93354112,0.00013289,2]
[346566381,1735097445900,-3643.45,0.00013289,2]
[346566382,1735097445909,-643.36,0.00013289,2]
[346566383,1735097445920,-500.0,0.00013289,2]
[346566384,1735097445930,-803.91,0.00013289,2]
[346566385,1735097445939,-151.0,0.00013289,2]
[346566386,1735097445949,-230.26817,0.00013289,2]
[346566387,1735097445959,-4287.03,0.00013289,2]
[346566388,1735097445969,-500.76052716,0.00013289,2]
[346566389,1735097445979,-1289.263323,0.00013289,2]
[346566390,1735097445989,-1289.263323,0.00013289,2]
[346566391,1735097445998,-1289.263323,0.00013289,2]
[346566392,1735097446008,-1289.263323,0.00013289,2]
[346566393,1735097446019,-1289.263323,0.00013289,2]
[346566394,1735097446028,-1289.263323,0.00013289,2]
[346566395,1735097446038,-1289.263323,0.00013289,2]
[346566396,1735097446048,-1289.263323,0.00013289,2]
[346566397,1735097446058,-3646.64,0.00013289,2]
[346566398,1735097446068,-782.16,0.00013289,2]
[346566399,1735097446079,-9108.4083559,0.0001329,2]
[346566400,1735097446089,-55980.58193651,0.0001329,2]
[346566401,1735097446099,-500.0,0.0001329,2]
[346566403,1735097446109,-500.0,0.0001329,2]
[346566405,1735097446119,-500.0,0.0001329,2]
[346566406,1735097446130,-500.0,0.0001329,2]
[346566408,1735097446140,-576.22724723,0.0001329,2]
[346566410,1735097446150,-502.18208635,0.0001329,2]
[346566412,1735097446160,-503.81349777,0.0001329,2]
[346566414,1735097446170,-854.75,0.0001329,2]
[346566416,1735097446180,-500.0,0.0001329,2]
[346566418,1735097446189,-500.0,0.0001329,2]
[346566420,1735097446199,-500.0,0.0001329,2]
[346566422,1735097446209,-500.0,0.0001329,2]
[346566424,1735097446219,-500.0,0.0001329,2]
[346566426,1735097446228,-500.0,0.0001329,2]
[346566428,1735097446238,-500.0,0.0001329,2]
[346566429,1735097446247,-500.0,0.0001329,2]
[346566430,1735097446257,-500.0,0.0001329,2]
[346566431,1735097446267,-500.0,0.0001329,2]
[346566432,1735097446276,-500.0,0.0001329,2]
[346566433,1735097446286,-500.0,0.0001329,2]
[346566434,1735097446295,-500.0,0.0001329,2]
[346566435,1735097446305,-500.0,0.0001329,2]
[346566436,1735097446315,-500.0,0.0001329,2]
[346566437,1735097446325,-500.0,0.0001329,2]
[346566438,1735097446335,-500.0,0.0001329,2]
[346566439,1735097446344,-500.0,0.0001329,2]
[346566440,1735097446354,-500.0,0.0001329,2]
[346566441,1735097446364,-500.0,0.0001329,2]
[346566442,1735097446373,-500.0,0.0001329,2]
[346566443,1735097446383,-502.23411489,0.0001329,2]
[346566444,1735097446394,-500.0,0.0001329,2]
[346566446,1735097446403,-500.0,0.0001329,2]
[346566448,1735097446413,-500.0,0.0001329,2]
[346566449,1735097446422,-500.0,0.0001329,2]
[346566451,1735097446431,-500.0,0.0001329,2]
[346566453,1735097446441,-500.0,0.0001329,2]
[346566455,1735097446451,-500.0,0.0001329,2]
[346566457,1735097446460,-500.0,0.0001329,2]
[346566460,1735097446470,-660.94,0.0001329,2]
[346566462,1735097446479,-503.03325489,0.0001329,2]
[346566464,1735097446489,-500.0,0.0001329,2]
[346566466,1735097446499,-501.35964612,0.0001329,2]
[346566468,1735097446508,-500.0,0.0001329,2]
[346566470,1735097446517,-500.0,0.0001329,2]
[346566472,1735097446527,-500.0,0.0001329,2]
[346566473,1735097446537,-625.87,0.0001329,2]
[346566475,1735097446546,-500.0,0.0001329,2]
[346566476,1735097446556,-502.53205806,0.0001329,2]
[346566477,1735097446566,-151.0,0.0001329,2]
[346566478,1735097446576,-151.0,0.0001329,2]
[346566479,1735097446585,-151.0,0.0001329,2]
[346566480,1735097446594,-151.0,0.0001329,2]
[346566481,1735097446603,-151.0,0.0001329,2]
[346566482,1735097446613,-151.0,0.0001329,2]
[346566483,1735097446623,-509.41352866,0.0001329,2]
[346566484,1735097446633,-500.0,0.0001329,2]
[346566485,1735097446642,-500.0,0.0001329,2]
[346566486,1735097446651,-500.0,0.0001329,2]
[346566487,1735097446660,-151.0,0.0001329,2]
[346566488,1735097446670,-151.0,0.0001329,2]
[346566489,1735097446679,-151.214095,0.0001329,2]
[346566490,1735097446688,-500.0,0.0001329,2]
[346566491,1735097446697,-500.0,0.0001329,2]
[346566492,1735097446707,-877.07,0.0001329,4]
[346566493,1735097446716,-501.84019742,0.0001329,2]
[346566494,1735097446726,-151.0,0.0001329,2]
[346566496,1735097446735,-151.0,0.0001329,2]
[346566497,1735097446745,-151.0,0.0001329,2]
[346566498,1735097446754,-404.27046514,0.0001329,2]
[346566500,1735097446764,-500.0,0.0001329,2]
[346566502,1735097446776,-151.0,0.0001329,2]
[346566504,1735097446787,-151.0,0.0001329,2]
[346566506,1735097446796,-151.0,0.0001329,2]
[346566508,1735097446806,-500.0,0.0001329,2]
[346566510,1735097446815,-228.72803747,0.0001329,2]
[346566512,1735097446826,-500.0,0.0001329,2]
[346566514,1735097446836,-501.27720006,0.0001329,2]
[346566516,1735097446847,-516.00944989,0.0001329,2]
[346566518,1735097446867,-500.0,0.0001329,2]
[346566520,1735097446881,-1194.02,0.0001329,2]
[346566522,1735097446891,-151.532028,0.0001329,2]
[346566524,1735097446901,-500.0,0.0001329,2]
[346566526,1735097446912,-500.0,0.0001329,2]
[346566528,1735097446922,-504.81629914,0.0001329,2]
[346566530,1735097446934,-500.0,0.0001329,2]
[346566532,1735097446945,-1127.118028,0.0001329,2]
[346566534,1735097446954,-1127.118028,0.0001329,2]
[346566536,1735097446963,-1127.118028,0.0001329,2]
[346566538,1735097446972,-500.0,0.0001329,2]
[346566540,1735097446982,-306.66341814,0.0001329,2]
[346566542,1735097446991,-1127.118028,0.0001329,2]
[346566544,1735097447000,-1127.118028,0.0001329,2]
[346566546,1735097447009,-1127.118028,0.0001329,2]
[346566548,1735097447020,-501.79148804,0.0001329,2]
[346566550,1735097447030,-608.37514,0.0001329,2]
[346566552,1735097447040,-608.37514,0.0001329,2]
[346566554,1735097447050,-503.28784475,0.0001329,2]
[346566556,1735097447060,-608.37514,0.0001329,2]
[346566558,1735097447069,-608.37514,0.0001329,2]
[346566560,1735097447079,-151.0,0.0001329,2]
[346566562,1735097447088,-151.0,0.0001329,2]
[346566564,1735097447098,-151.0,0.0001329,2]
[346566566,1735097447107,-608.37514,0.0001329,2]
[346566568,1735097447116,-166.46941,0.0001329,2]
[346566570,1735097447126,-608.37514,0.0001329,2]
[346566572,1735097447135,-608.37514,0.0001329,2]
[346566574,1735097447144,-608.37514,0.0001329,2]
[346566576,1735097447154,-500.0,0.0001329,2]
[346566578,1735097447163,-501.69765424,0.0001329,2]
[346566579,1735097447172,-1324.015368,0.0001329,2]
[346566580,1735097447182,-1324.015368,0.0001329,2]
[346566581,1735097447191,-1324.015368,0.0001329,2]
[346566582,1735097447201,-1324.015368,0.0001329,2]
[346566583,1735097447210,-500.0,0.0001329,2]
[346566584,1735097447220,-1324.015368,0.0001329,2]
[346566585,1735097447229,-1324.015368,0.0001329,2]
[346566586,1735097447239,-1324.015368,0.0001329,2]
[346566587,1735097447248,-1324.015368,0.0001329,2]
[346566588,1735097447257,-502.72421608,0.0001329,2]
[346566589,1735097447267,-887.97,0.0001329,2]
[346566590,1735097447276,-501.05565639,0.0001329,2]
[346566591,1735097447285,-500.0,0.0001329,2]
[346566592,1735097447294,-500.0,0.0001329,2]
[346566593,1735097447304,-500.0,0.0001329,2]
[346566594,1735097447314,-546.04313,0.0001329,2]
[346566595,1735097447324,-546.04313,0.0001329,2]
[346566596,1735097447333,-546.04313,0.0001329,2]
[346566597,1735097447343,-1181.63,0.0001329,2]
[346566598,1735097447352,-546.04313,0.0001329,2]
[346566599,1735097447362,-500.0,0.0001329,2]
[346566600,1735097447372,-546.04313,0.0001329,2]
[346566601,1735097447381,-546.04313,0.0001329,2]
[346566602,1735097447391,-546.04313,0.0001329,2]
[346566603,1735097447402,-546.04313,0.0001329,2]
[346566604,1735097447411,-503.14849776,0.0001329,2]
[346566605,1735097447421,-500.0,0.0001329,2]
[346566606,1735097447431,-500.0,0.0001329,2]
[346566607,1735097447440,-267.589683,0.0001329,2]
[346566608,1735097447449,-267.589683,0.0001329,2]
[346566609,1735097447458,-267.589683,0.0001329,2]
[346566610,1735097447468,-500.0,0.0001329,2]
[346566611,1735097447477,-267.589683,0.0001329,2]
[346566612,1735097447487,-267.589683,0.0001329,2]
[346566613,1735097447496,-267.589683,0.0001329,2]
[346566614,1735097447505,-267.589683,0.0001329,2]
[346566615,1735097447515,-389.514579,0.0001329,2]
[346566616,1735097447527,-502.42276294,0.0001329,2]
[346566617,1735097447537,-267.589683,0.0001329,2]
[346566618,1735097447546,-389.514579,0.0001329,2]
[346566619,1735097447555,-239.346566,0.0001329,2]
[346566620,1735097447564,-825.920121,0.0001329,2]
[346566621,1735097447574,-267.589683,0.0001329,2]
[346566622,1735097447583,-389.514579,0.0001329,2]
[346566623,1735097447593,-267.589683,0.0001329,2]
[346566624,1735097447602,-389.514579,0.0001329,2]
[346566625,1735097447612,-239.346566,0.0001329,2]
[346566626,1735097447621,-825.920121,0.0001329,2]
[346566627,1735097447631,-239.346566,0.0001329,2]
[346566628,1735097447640,-825.920121,0.0001329,2]
[346566629,1735097447649,-239.346566,0.0001329,2]
[346566630,1735097447658,-825.920121,0.0001329,2]
[346566631,1735097447668,-239.346566,0.0001329,2]
[346566632,1735097447677,-239.346566,0.0001329,2]
[346566633,1735097447686,-825.920121,0.0001329,2]
[346566634,1735097447696,-825.920121,0.0001329,2]
[346566635,1735097447705,-239.346566,0.0001329,2]
[346566636,1735097447715,-642.76,0.0001329,2]
[346566637,1735097447725,-825.920121,0.0001329,2]
[346566638,1735097447735,-825.920121,0.0001329,2]
[346566639,1735097447744,-239.346566,0.0001329,2]
[346566640,1735097447753,-239.346566,0.0001329,2]
[346566642,1735097447763,-239.346566,0.0001329,2]
[346566644,1735097447777,-500.0,0.0001329,2]
[346566646,1735097447786,-389.514579,0.0001329,2]
[346566648,1735097447795,-389.514579,0.0001329,2]
[346566650,1735097447804,-389.514579,0.0001329,2]
[346566652,1735097447814,-389.514579,0.0001329,2]
[346566654,1735097447824,-503.06360958,0.0001329,2]
[346566656,1735097447834,-245.19996115,0.0001329,2]
[346566658,1735097447844,-1245.17,0.0001329,2]
[346566660,1735097447855,-500.0,0.0001329,2]
[346566662,1735097447865,-501.71736865,0.0001329,2]
[346566664,1735097447874,-502.1815456,0.0001329,2]
[346566666,1735097447884,-500.0,0.0001329,2]
[346566668,1735097447893,-500.0,0.0001329,2]
[346566670,1735097447903,-543.06132995,0.0001329,2]
[346566672,1735097447912,-503.05907162,0.0001329,2]
[346566673,1735097447921,-2165.13,0.0001329,2]
[346566674,1735097447931,-200.030491,0.0001329,2]
[346566675,1735097447941,-200.030491,0.0001329,2]
[346566676,1735097447951,-200.030491,0.0001329,2]
[346566677,1735097447961,-200.030491,0.0001329,2]
[346566679,1735097447971,-200.030491,0.0001329,2]
[346566681,1735097447981,-200.030491,0.0001329,2]
[346566683,1735097447991,-200.030491,0.0001329,2]
[346566685,1735097448001,-200.030491,0.0001329,2]
[346566687,1735097448011,-200.030491,0.0001329,2]
[346566689,1735097448024,-200.030491,0.0001329,2]
[346566691,1735097448035,-200.030491,0.0001329,2]
[346566693,1735097448048,-200.030491,0.0001329,2]
[346566695,1735097448058,-200.030491,0.0001329,2]
[346566697,1735097448068,-200.030491,0.0001329,2]
[346566699,1735097448080,-200.030491,0.0001329,2]
[346566701,1735097448090,-200.030491,0.0001329,2]
[346566703,1735097448099,-507.36582765,0.0001329,2]
[346566705,1735097448109,-1072.08,0.0001329,2]
[346566707,1735097448119,-2380.75,0.0001329,2]
[346566709,1735097448129,-503.64776909,0.0001329,2]
[346566711,1735097448139,-205.55411599,0.0001329,2]
[346566713,1735097448150,-500.0,0.0001329,2]
[346566714,1735097448159,-500.0,0.0001329,2]
[346566717,1735097448169,-500.0,0.0001329,2]
[346566718,1735097448179,-747.110919,0.0001329,2]
[346566720,1735097448189,-747.110919,0.0001329,2]
[346566723,1735097448199,-1345.76,0.0001329,2]
[346566725,1735097448209,-747.110919,0.0001329,2]
[346566727,1735097448218,-225.848251,0.0001329,2]
[346566729,1735097448228,-501.08592593,0.0001329,2]
[346566731,1735097448238,-747.110919,0.0001329,2]
[346566733,1735097448247,-225.848251,0.0001329,2]
[346566735,1735097448257,-747.110919,0.0001329,2]
[346566749,1735097448266,-225.848251,0.0001329,2]
[346566752,1735097448405,-747.110919,0.0001329,2]
[346566754,1735097448414,-151.0,0.0001329,2]
[346566756,1735097448424,-747.110919,0.0001329,2]
[346566758,1735097448434,-225.848251,0.0001329,2]
[346566760,1735097448444,-289.572692,0.0001329,2]
[346566762,1735097448454,-747.110919,0.0001329,2]
[346566764,1735097448463,-225.848251,0.0001329,2]
[346566766,1735097448473,-225.848251,0.0001329,2]
[346566768,1735097448482,-225.848251,0.0001329,2]
[346566770,1735097448492,-747.110919,0.0001329,2]
[346566772,1735097448502,-225.848251,0.0001329,2]
[346566774,1735097448511,-500.0,0.0001329,2]
[346566776,1735097448522,-747.110919,0.0001329,2]
[346566778,1735097448532,-747.110919,0.0001329,2]
[346566780,1735097448544,-747.110919,0.0001329,2]
[346566782,1735097448555,-225.848251,0.0001329,2]
[346566784,1735097448564,-747.110919,0.0001329,2]
[346566786,1735097448574,-225.848251,0.0001329,2]
[346566788,1735097448584,-747.110919,0.0001329,2]
[346566790,1735097448594,-225.848251,0.0001329,2]
[346566792,1735097448603,-151.0,0.0001329,2]
[346566794,1735097448612,-747.110919,0.0001329,2]
[346566796,1735097448622,-225.848251,0.0001329,2]
[346566798,1735097448631,-151.0,0.0001329,2]
[346566800,1735097448641,-747.110919,0.0001329,2]
[346566802,1735097448650,-225.848251,0.0001329,2]
[346566804,1735097448660,-180.107598,0.0001329,2]
[346566806,1735097448670,-225.848251,0.0001329,2]
[346566808,1735097448679,-225.848251,0.0001329,2]
[346566811,1735097448689,-225.848251,0.0001329,2]
[346566813,1735097448698,-500.0,0.0001329,2]
[346566814,1735097448708,-502.80945582,0.0001329,2]
[346566816,1735097448717,-500.0,0.0001329,2]
[346566818,1735097448726,-501.01711925,0.0001329,2]
[346566820,1735097448736,-1854.69,0.0001329,2]
[346566822,1735097448745,-500.36963345,0.0001329,2]
[346566824,1735097448755,-502.92569083,0.0001329,2]
[346566827,1735097448765,-500.0,0.0001329,2]
[346566828,1735097448780,-501.12435027,0.0001329,2]
[346566830,1735097448789,-1441.18,0.0001329,2]
[346566832,1735097448799,-683.48,0.0001329,2]
[346566834,1735097448809,-500.0,0.0001329,2]
[346566836,1735097448819,-500.0,0.0001329,2]
[346566838,1735097448828,-500.0,0.0001329,2]
[346566840,1735097448841,-500.0,0.0001329,2]
[346566842,1735097448851,-468.86219985,0.0001329,2]
[346566844,1735097448861,-151.0,0.0001329,2]
[346566846,1735097448872,-151.0,0.0001329,2]
[346566848,1735097448881,-151.0,0.0001329,2]
[346566850,1735097448891,-151.0,0.0001329,2]
[346566852,1735097448901,-151.0,0.0001329,2]
[346566855,1735097448911,-151.0,0.0001329,2]
[346566857,1735097448920,-151.0,0.0001329,2]
[346566858,1735097448930,-538.31089157,0.0001329,2]
[346566861,1735097448940,-151.0,0.0001329,2]
[346566863,1735097448949,-151.0,0.0001329,2]
[346566865,1735097448959,-151.0,0.0001329,2]
[346566867,1735097448968,-278.086198,0.0001329,2]
[346566868,1735097448978,-500.0,0.0001329,2]
[346566871,1735097448987,-500.34381484,0.0001329,2]
[346566873,1735097448996,-503.384222,0.0001329,2]
[346566874,1735097449006,-501.56645441,0.0001329,2]
[346566876,1735097449015,-500.0,0.0001329,2]
[346566878,1735097449025,-500.0,0.0001329,2]
[346566880,1735097449035,-502.67520174,0.0001329,2]
[346566882,1735097449045,-151.0,0.0001329,2]
[346566884,1735097449054,-151.0,0.0001329,2]
[346566886,1735097449064,-151.0,0.0001329,2]
[346566888,1735097449074,-500.0,0.0001329,2]
[346566890,1735097449083,-502.51455741,0.0001329,2]
[346566892,1735097449093,-151.0,0.0001329,2]
[346566894,1735097449102,-151.0,0.0001329,2]
[346566896,1735097449112,-151.0,0.0001329,2]
[346566898,1735097449120,-158.225007,0.0001329,2]
[346566900,1735097449129,-758.297212,0.0001329,2]
[346566902,1735097449139,-758.297212,0.0001329,2]
[346566904,1735097449147,-758.297212,0.0001329,2]
[346566906,1735097449157,-758.297212,0.0001329,2]
[346566908,1735097449166,-758.297212,0.0001329,2]
[346566910,1735097449175,-758.297212,0.0001329,2]
[346566912,1735097449184,-758.297212,0.0001329,2]
[346566914,1735097449193,-758.297212,0.0001329,2]
[346566915,1735097449203,-758.297212,0.0001329,2]
[346566916,1735097449212,-758.297212,0.0001329,2]
[346566917,1735097449221,-758.297212,0.0001329,2]
[346566918,1735097449231,-758.297212,0.0001329,2]
[346566919,1735097449241,-500.0,0.0001329,2]
[346566920,1735097449250,-758.297212,0.0001329,2]
[346566921,1735097449259,-758.297212,0.0001329,2]
[346566922,1735097449269,-758.297212,0.0001329,2]
[346566923,1735097449279,-758.297209,0.0001329,2]
[346566924,1735097449289,-151.0,0.0001329,2]